fUST/lending_fUST_20240730
["ID","MTS","AMOUNT","RATE_DAILY","PERIOD"]
[333676286,1722344135179,10000.0,0.00027,120]
[333676287,1722344141803,10000.0,0.00027,120]
[333676288,1722344159905,1473.0,0.00027,120]
[333676294,1722344740109,-250.25379408,9.999e-05,2]
[333676295,1722344740130,-168.85179,0.00011713,2]
[333676296,1722344740152,-3141.4706708,0.00012082,2]
[333676297,1722344740175,-168.85179,0.00012112,2]
[333676298,1722344740196,-154.67518212,0.00012119,2]
[333676299,1722344740217,-166.916464,0.00012188,2]
[333676300,1722344740238,-166.916464,0.00012279,2]
[333676301,1722344740260,-166.916464,0.00012369,2]
[333676302,1722344740281,-166.916464,0.0001246,2]
[333676303,1722344740303,-168.85179,0.00012511,2]
[333676304,1722344740326,-166.916464,0.00012551,2]
[333676305,1722344740347,-166.916464,0.00012642,2]
[333676306,1722344740368,-166.916464,0.00012732,2]
[333676307,1722344740389,-166.916464,0.00012823,2]
[333676308,1722344740410,-168.85179,0.0001291,2]
[333676309,1722344740431,-192.651973,0.00012986,2]
[333676310,1722344740452,-367.69126021,0.00013151,2]
[333676311,1722344740473,-300.0,0.00013186,2]
[333676312,1722344740493,-191.0,0.00013186,2]
[333676313,1722344740513,-5310.19883736,0.00013187,2]
[333676314,1722344740534,-168.85179,0.00013309,2]
[333676315,1722344740554,-2293.28210671,0.00013578,2]
[333676316,1722344740578,-183.30926888,0.00013587,2]
[333676317,1722344740599,-500.0,0.00013587,2]
[333676318,1722344740620,-500.0,0.00013587,2]
[333676319,1722344740644,-2000.0,0.00013588,2]
[333676320,1722344740668,-183.30926887,0.0001359,2]
[333676321,1722344740688,-183.30926887,0.00013592,2]
[333676322,1722344740708,-183.30926887,0.00013595,2]
[333676323,1722344740728,-183.30926887,0.00013597,2]
[333676324,1722344740748,-943.32979744,0.00013598,2]
[333676325,1722344740769,-387.00562,0.000136,30]
[333676326,1722344740789,-206.8555981,0.00013644,2]
[333676327,1722344740809,-153.0,0.00013644,2]
[333676328,1722344740829,-206.8555981,0.00013644,2]
[333676329,1722344740850,-153.0,0.00013644,2]
[333676330,1722344740871,-153.0,0.00013644,2]
[333676331,1722344740893,-206.8555981,0.00013644,2]
[333676332,1722344740916,-206.8555981,0.00013644,2]
[333676333,1722344740941,-206.8555981,0.00013644,2]
[333676334,1722344740960,-413.2286775,0.00013644,2]
[333676335,1722344740983,-268.724,0.00013662,2]
[333676336,1722344741005,-469.6694194,0.00013677,5]
[333676337,1722344741026,-106439.38861352,0.00013677,2]
[333676338,1722344839116,-264.79364586,0.00012119,2]
[333676339,1722344839141,-5310.19883736,0.00013153,2]
[333676340,1722344839164,-367.69126021,0.00013185,2]
[333676341,1722344839187,-300.0,0.00013586,2]
[333676342,1722344839213,-191.0,0.00013586,2]
[333676343,1722344839238,-74043.37004554,0.00013587,2]
[333676344,1722344839264,-469.6694194,0.00013677,5]
[333676345,1722344839287,-722.43709889,0.00013677,2]
[333676346,1722344839310,-154.6763278,0.00013677,2]
[333676347,1722344839333,-1487.86128804,0.00013677,2]
[333676348,1722344839355,-7967.31785098,0.00013677,2]
[333676349,1722344839377,-677.20352985,0.00013677,2]
[333676350,1722344839401,-2006.24346757,0.00013677,2]
[333676351,1722344839423,-166207.15389648,0.00013677,2]
[333676352,1722344839446,-500.0,0.00013678,2]
[333676353,1722344839470,-500.0,0.00013678,2]
[333676354,1722344839497,-7107.98821254,0.00013687,5]
[333676355,1722344839519,-90027.63687948,0.00013687,2]
[333676356,1722344844148,-117426.76286,0.00013687,2]
[333676357,1722344852102,-150.0,9.487e-05,2]
[333676358,1722344852123,-19704.57277,0.00013687,2]
[333676406,1722345031986,-166.916464,0.00012737,2]
[333676408,1722345031998,-166.916464,0.00012832,2]
[333676410,1722345032008,-166.916464,0.00012927,2]
[333676412,1722345032018,-166.916464,0.00013021,2]
[333676414,1722345032027,-166.916464,0.00013116,2]
[333676416,1722345032037,-166.916464,0.00013211,2]
[333676418,1722345032047,-166.916464,0.00013306,2]
[333676420,1722345032056,-166.916464,0.00013401,2]
[333676422,1722345032067,-2000.0,0.00013577,2]
[333676424,1722345032076,-500.0,0.00013587,2]
[333676427,1722345032086,-500.0,0.00013587,2]
[333676429,1722345032096,-183.30926888,0.00013597,2]
[333676434,1722345032252,-183.30926887,0.00013597,2]
[333676435,1722345032262,-183.30926887,0.00013598,2]
[333676436,1722345032271,-183.30926887,0.00013598,2]
[333676437,1722345032280,-183.30926887,0.00013598,2]
[333676438,1722345032290,-300.0,0.00013685,2]
[333676439,1722345032299,-500.0,0.00013686,2]
[333676440,1722345032309,-500.0,0.00013686,2]
[333676441,1722345032318,-500.0,0.00013686,2]
[333676442,1722345032327,-500.0,0.00013686,2]
[333676444,1722345032337,-500.0,0.00013686,2]
[333676445,1722345032347,-559.72752907,0.00013686,2]
[333676447,1722345032357,-9994.34914235,0.00013687,2]
[333676450,1722345032369,-647.08484553,0.00013687,2]
[333676452,1722345032382,-9793.95750731,0.00013687,2]
[333676454,1722345032392,-1027.64290533,0.00013687,2]
[333676456,1722345032401,-263.326532,0.00013688,2]
[333676458,1722345032411,-263.326532,0.00013688,2]
[333676459,1722345032422,-150.0,0.00013688,2]
[333676461,1722345032431,-151.0,0.00013688,2]
[333676463,1722345032442,-151.0,0.00013688,2]
[333676465,1722345032454,-359107.667596,0.00013688,2]
[333676467,1722345032466,-199603.462889,0.0001369,2]
[333676469,1722345032475,-3389.54919772,0.00013697,2]
[333676471,1722345032485,-3553.99410627,0.00013698,5]
[333676473,1722345032497,-60.00444873,0.00013698,2]
[333676475,1722345032507,-500.0,0.00013698,2]
[333676477,1722345032517,-500.0,0.00013698,2]
[333676479,1722345032526,-500.0,0.00013698,2]
[333676481,1722345032536,-500.0,0.00013698,2]
[333676483,1722345032545,-500.0,0.00013698,2]
[333676485,1722345032555,-519.55300726,0.00013698,2]
[333676487,1722345032565,-500.0,0.00013698,2]
[333676489,1722345032575,-500.0,0.00013698,2]
[333676491,1722345032585,-498.28939608,0.00013698,2]
[333676493,1722345032594,-500.0,0.00013698,2]
[333676495,1722345032604,-500.0,0.00013698,2]
[333676497,1722345032613,-217.91059761,0.00013698,2]
[333676500,1722345032623,-500.0,0.00013698,2]
[333676501,1722345032634,-500.0,0.00013698,2]
[333676503,1722345032643,-500.0,0.00013698,2]
[333676505,1722345032653,-500.0,0.00013698,2]
[333676507,1722345032662,-500.0,0.00013698,2]
[333676509,1722345032671,-500.0,0.00013698,2]
[333676511,1722345032681,-500.0,0.00013698,2]
[333676513,1722345032690,-500.0,0.00013698,2]
[333676515,1722345032699,-500.0,0.00013698,2]
[333676517,1722345032708,-500.0,0.00013698,2]
[333676519,1722345032718,-500.0,0.00013698,2]
[333676521,1722345032727,-500.0,0.00013698,2]
[333676523,1722345032736,-500.0,0.00013698,2]
[333676525,1722345032746,-500.0,0.00013698,2]
[333676527,1722345032757,-500.0,0.00013698,2]
[333676529,1722345032766,-500.0,0.00013698,2]
[333676530,1722345032775,-501.53335083,0.00013698,2]
[333676533,1722345032785,-500.0,0.00013698,2]
[333676535,1722345032794,-500.0,0.00013698,2]
[333676537,1722345032804,-500.0,0.00013698,2]
[333676539,1722345032814,-500.0,0.00013698,2]
[333676541,1722345032825,-500.0,0.00013698,2]
[333676543,1722345032835,-500.0,0.00013698,2]
[333676545,1722345032846,-500.0,0.00013698,2]
[333676547,1722345032856,-500.0,0.00013698,2]
[333676550,1722345032867,-500.0,0.00013698,2]
[333676552,1722345032881,-500.0,0.00013698,2]
[333676554,1722345032890,-500.0,0.00013698,2]
[333676556,1722345032902,-500.0,0.00013698,2]
[333676558,1722345032912,-500.0,0.00013698,2]
[333676560,1722345032922,-500.0,0.00013698,2]
[333676562,1722345032931,-500.0,0.00013698,2]
[333676564,1722345032941,-500.0,0.00013698,2]
[333676566,1722345032951,-500.0,0.00013698,2]
[333676568,1722345032961,-500.0,0.00013698,2]
[333676570,1722345032970,-500.0,0.00013698,2]
[333676571,1722345032979,-500.0,0.00013698,2]
[333676573,1722345032991,-500.0,0.00013698,2]
[333676575,1722345033001,-500.0,0.00013698,2]
[333676577,1722345033010,-504.32151622,0.00013698,2]
[333676579,1722345033020,-500.0,0.00013698,2]
[333676580,1722345033029,-500.0,0.00013698,2]
[333676582,1722345033039,-500.0,0.00013698,2]
[333676584,1722345033049,-500.0,0.00013698,2]
[333676586,1722345033059,-500.0,0.00013698,2]
[333676588,1722345033069,-512.50882319,0.00013698,2]
[333676590,1722345033079,-422.35362005,0.00013698,2]
[333676591,1722345033089,-500.0,0.00013698,2]
[333676593,1722345033099,-500.0,0.00013698,2]
[333676595,1722345033108,-500.0,0.00013698,2]
[333676597,1722345033118,-500.0,0.00013698,2]
[333676598,1722345033128,-500.0,0.00013698,2]
[333676600,1722345033137,-504.15097298,0.00013698,2]
[333676602,1722345033146,-500.0,0.00013698,2]
[333676603,1722345033156,-510.51536164,0.00013698,2]
[333676605,1722345033166,-500.0,0.00013698,2]
[333676607,1722345033175,-503.44656902,0.00013698,2]
[333676609,1722345033185,-500.0,0.00013698,2]
[333676611,1722345033198,-502.1293655,0.00013698,2]
[333676613,1722345033214,-500.0,0.00013698,2]
[333676615,1722345033231,-500.0,0.00013698,2]
[333676616,1722345033245,-500.0,0.00013698,2]
[333676617,1722345033260,-500.0,0.00013698,2]
[333676618,1722345033278,-500.0,0.00013698,2]
[333676619,1722345033292,-500.0,0.00013698,2]
[333676620,1722345033310,-500.0,0.00013698,2]
[333676621,1722345033324,-500.0,0.00013698,2]
[333676622,1722345033339,-500.0,0.00013698,2]
[333676623,1722345033355,-500.0,0.00013698,2]
[333676624,1722345033370,-500.0,0.00013698,2]
[333676625,1722345033383,-500.0,0.00013698,2]
[333676626,1722345033398,-500.0,0.00013698,2]
[333676627,1722345033412,-503.25316555,0.00013698,2]
[333676628,1722345033426,-508.36367782,0.00013698,2]
[333676629,1722345033440,-500.0,0.00013698,2]
[333676630,1722345033457,-500.0,0.00013698,2]
[333676631,1722345033472,-500.0,0.00013698,2]
[333676632,1722345033483,-500.0,0.00013698,2]
[333676633,1722345033494,-501.12298834,0.00013698,2]
[333676634,1722345033509,-500.0,0.00013698,2]
[333676635,1722345033525,-500.0,0.00013698,2]
[333676636,1722345033537,-500.0,0.00013698,2]
[333676637,1722345033551,-502.36504551,0.00013698,2]
[333676638,1722345033565,-555.62564859,0.00013698,2]
[333676639,1722345033576,-500.0,0.00013698,2]
[333676640,1722345033588,-500.0,0.00013698,2]
[333676641,1722345033600,-500.0,0.00013698,2]
[333676642,1722345033616,-503.40766741,0.00013698,2]
[333676643,1722345033630,-500.0,0.00013698,2]
[333676644,1722345033643,-500.0,0.00013698,2]
[333676645,1722345033656,-500.0,0.00013698,2]
[333676646,1722345033668,-500.0,0.00013698,2]
[333676647,1722345033682,-500.0,0.00013698,2]
[333676648,1722345033694,-503.21015738,0.00013698,2]
[333676649,1722345033707,-500.0,0.00013698,2]
[333676650,1722345033720,-158.27369891,0.00013698,2]
[333676651,1722345033733,-500.0,0.00013698,2]
[333676652,1722345033745,-504.36851892,0.00013698,2]
[333676653,1722345033758,-500.0,0.00013698,2]
[333676654,1722345033771,-500.0,0.00013698,2]
[333676655,1722345033784,-500.0,0.00013698,2]
[333676656,1722345033796,-500.0,0.00013698,2]
[333676657,1722345033809,-502.79126049,0.00013698,2]
[333676658,1722345033822,-500.0,0.00013698,2]
[333676659,1722345033836,-500.0,0.00013698,2]
[333676660,1722345033849,-500.0,0.00013698,2]
[333676661,1722345033862,-501.10314974,0.00013698,2]
[333676662,1722345033875,-500.0,0.00013698,2]
[333676663,1722345033887,-500.0,0.00013698,2]
[333676664,1722345033900,-500.0,0.00013698,2]
[333676665,1722345033913,-500.0,0.00013698,2]
[333676666,1722345033926,-500.0,0.00013698,2]
[333676667,1722345033939,-500.0,0.00013698,2]
[333676668,1722345033952,-500.0,0.00013698,2]
[333676669,1722345033967,-500.0,0.00013698,2]
[333676670,1722345033980,-500.0,0.00013698,2]
[333676671,1722345033996,-500.0,0.00013698,2]
[333676672,1722345034010,-500.0,0.00013698,2]
[333676673,1722345034023,-500.0,0.00013698,2]
[333676674,1722345034037,-500.0,0.00013698,2]
[333676675,1722345034049,-500.0,0.00013698,2]
[333676676,1722345034063,-500.0,0.00013698,2]
[333676677,1722345034076,-500.50432204,0.00013698,2]
[333676678,1722345034089,-500.0,0.00013698,2]
[333676679,1722345034102,-502.382924,0.00013698,2]
[333676680,1722345034115,-500.0,0.00013698,2]
[333676681,1722345034128,-500.0,0.00013698,2]
[333676682,1722345034141,-501.21475447,0.00013698,2]
[333676683,1722345034156,-500.0,0.00013698,2]
[333676684,1722345034168,-500.0,0.00013698,2]
[333676685,1722345034180,-500.0,0.00013698,2]
[333676686,1722345034193,-500.0,0.00013698,2]
[333676687,1722345034206,-500.0,0.00013698,2]
[333676688,1722345034219,-500.0,0.00013698,2]
[333676689,1722345034232,-500.0,0.00013698,2]
[333676690,1722345034244,-508.81581377,0.00013698,2]
[333676691,1722345034257,-509.85931349,0.00013698,2]
[333676692,1722345034271,-509.13621753,0.00013698,2]
[333676693,1722345034283,-500.0,0.00013698,2]
[333676694,1722345034297,-500.0,0.00013698,2]
[333676695,1722345034309,-500.0,0.00013698,2]
[333676696,1722345034321,-500.0,0.00013698,2]
[333676697,1722345034334,-500.0,0.00013698,2]
[333676698,1722345034347,-500.0,0.00013698,2]
[333676699,1722345034359,-500.0,0.00013698,2]
[333676700,1722345034373,-500.0,0.00013698,2]
[333676701,1722345034387,-500.0,0.00013698,2]
[333676702,1722345034400,-500.0,0.00013698,2]
[333676703,1722345034412,-500.0,0.00013698,2]
[333676704,1722345034425,-500.0,0.00013698,2]
[333676705,1722345034440,-508.31937502,0.00013698,2]
[333676706,1722345034452,-502.59289334,0.00013698,2]
[333676707,1722345034465,-603.51210857,0.00013698,2]
[333676708,1722345034478,-502.77796771,0.00013698,2]
[333676709,1722345034491,-500.0,0.00013698,2]
[333676710,1722345034683,-500.0,0.00013698,2]
[333676711,1722345034694,-503.14079257,0.00013698,2]
[333676712,1722345034704,-500.76146546,0.00013698,2]
[333676713,1722345034713,-500.0,0.00013698,2]
[333676714,1722345034724,-500.0,0.00013698,2]
[333676715,1722345034733,-500.0,0.00013698,2]
[333676716,1722345034743,-501.04442177,0.00013698,2]
[333676717,1722345034753,-509.48766753,0.00013698,2]
[333676718,1722345034763,-506.63707034,0.00013698,2]
[333676719,1722345034773,-500.0,0.00013698,2]
[333676720,1722345034783,-232.56848709,0.00013698,2]
[333676721,1722345034793,-500.0,0.00013698,2]
[333676722,1722345034802,-500.0,0.00013698,2]
[333676723,1722345034811,-500.0,0.00013698,2]
[333676724,1722345034821,-500.0,0.00013698,2]
[333676725,1722345034830,-500.0,0.00013698,2]
[333676726,1722345034839,-504.3777284,0.00013698,2]
[333676727,1722345034849,-500.0,0.00013698,2]
[333676728,1722345034859,-500.0,0.00013698,2]
[333676729,1722345034868,-500.0,0.00013698,2]
[333676730,1722345034880,-500.0,0.00013698,2]
[333676731,1722345034889,-500.0,0.00013698,2]
[333676732,1722345034899,-500.0,0.00013698,2]
[333676733,1722345034907,-500.0,0.00013698,2]
[333676734,1722345034917,-500.0,0.00013698,2]
[333676735,1722345034928,-500.0,0.00013698,2]
[333676736,1722345034938,-500.0,0.00013698,2]
[333676737,1722345034947,-500.0,0.00013698,2]
[333676738,1722345034957,-604.35,0.00013698,2]
[333676739,1722345034966,-500.0,0.00013698,2]
[333676740,1722345034976,-517.49677819,0.00013698,2]
[333676741,1722345034986,-500.0,0.00013698,2]
[333676742,1722345034999,-500.0,0.00013698,2]
[333676743,1722345035009,-365.94979163,0.00013698,2]
[333676744,1722345035019,-232.47046303,0.00013698,2]
[333676745,1722345035029,-500.0,0.00013698,2]
[333676746,1722345035039,-500.0,0.00013698,2]
[333676747,1722345035049,-500.0,0.00013698,2]
[333676748,1722345035059,-508.70336244,0.00013698,2]
[333676749,1722345035070,-500.0,0.00013698,2]
[333676750,1722345035079,-500.0,0.00013698,2]
[333676751,1722345035089,-500.0,0.00013698,2]
[333676752,1722345035099,-500.0,0.00013698,2]
[333676753,1722345035109,-486.33309984,0.00013698,2]
[333676754,1722345035118,-500.0,0.00013698,2]
[333676755,1722345035129,-500.0,0.00013698,2]
[333676756,1722345035139,-500.0,0.00013698,2]
[333676757,1722345035149,-503.53013191,0.00013698,2]
[333676758,1722345035158,-649.18579409,0.00013698,2]
[333676759,1722345035167,-500.0,0.00013698,2]
[333676760,1722345035177,-500.0,0.00013698,2]
[333676761,1722345035186,-500.0,0.00013698,2]
[333676762,1722345035195,-500.0,0.00013698,2]
[333676763,1722345035204,-500.0,0.00013698,2]
[333676764,1722345035215,-503.01155436,0.00013698,2]
[333676765,1722345035225,-500.0,0.00013698,2]
[333676766,1722345035235,-500.0,0.00013698,2]
[333676767,1722345035246,-501.84887549,0.00013698,2]
[333676768,1722345035255,-500.0,0.00013698,2]
[333676769,1722345035265,-500.0,0.00013698,2]
[333676770,1722345035275,-500.0,0.00013698,2]
[333676771,1722345035285,-510.24573408,0.00013698,2]
[333676772,1722345035295,-500.0,0.00013698,2]
[333676773,1722345035304,-500.0,0.00013698,2]
[333676774,1722345035313,-500.0,0.00013698,2]
[333676775,1722345035323,-500.0,0.00013698,2]
[333676776,1722345035332,-500.0,0.00013698,2]
[333676777,1722345035341,-389.29172307,0.00013698,2]
[333676778,1722345035351,-500.0,0.00013698,2]
[333676779,1722345035361,-500.0,0.00013698,2]
[333676780,1722345035370,-502.39443044,0.00013698,2]
[333676781,1722345035382,-519.60057019,0.00013698,2]
[333676782,1722345035391,-500.0,0.00013698,2]
[333676783,1722345035401,-500.0,0.00013698,2]
[333676784,1722345035411,-504.82807091,0.00013698,2]
[333676785,1722345035420,-500.0,0.00013698,2]
[333676786,1722345035429,-500.0,0.00013698,2]
[333676787,1722345035438,-301.35966032,0.00013698,2]
[333676788,1722345035448,-503.0194378,0.00013698,2]
[333676789,1722345035458,-500.0,0.00013698,2]
[333676790,1722345035468,-500.0,0.00013698,2]
[333676791,1722345035478,-500.0,0.00013698,2]
[333676792,1722345035487,-500.0,0.00013698,2]
[333676793,1722345035497,-501.96384222,0.00013698,2]
[333676794,1722345035508,-502.21190516,0.00013698,2]
[333676795,1722345035518,-500.0,0.00013698,2]
[333676796,1722345035529,-503.82022834,0.00013698,2]
[333676797,1722345035540,-501.66437932,0.00013698,2]
[333676798,1722345035550,-519.25959459,0.00013698,2]
[333676799,1722345035559,-507.51126654,0.00013698,2]
[333676800,1722345035569,-500.0,0.00013698,2]
[333676801,1722345035580,-500.0,0.00013698,2]
[333676802,1722345035590,-535.5895676,0.00013698,2]
[333676803,1722345035599,-500.0,0.00013698,2]
[333676804,1722345035608,-500.0,0.00013698,2]
[333676805,1722345035617,-502.77077506,0.00013698,2]
[333676806,1722345035630,-310.92980886,0.00013698,2]
[333676807,1722345035639,-500.0,0.00013698,2]
[333676808,1722345035648,-307.32856998,0.00013698,2]
[333676809,1722345035658,-238.8963325,0.00013698,2]
[333676810,1722345035668,-502.2283621,0.00013698,2]
[333676811,1722345035678,-500.0,0.00013698,2]
[333676812,1722345035688,-504.73581637,0.00013698,2]
[333676813,1722345035698,-213.14098696,0.00013698,2]
[333676814,1722345035708,-500.0,0.00013698,2]
[333676815,1722345035717,-500.0,0.00013698,2]
[333676816,1722345035727,-500.0,0.00013698,2]
[333676817,1722345035737,-500.0,0.00013698,2]
[333676818,1722345035747,-503.16794017,0.00013698,2]
[333676819,1722345035756,-500.0,0.00013698,2]
[333676820,1722345035765,-500.0,0.00013698,2]
[333676821,1722345035775,-502.16777295,0.00013698,2]
[333676822,1722345035785,-500.0,0.00013698,2]
[333676823,1722345035795,-500.0,0.00013698,2]
[333676824,1722345035804,-500.0,0.00013698,2]
[333676825,1722345035814,-500.0,0.00013698,2]
[333676826,1722345035823,-500.0,0.00013698,2]
[333676827,1722345035833,-474.86079745,0.00013698,2]
[333676828,1722345035843,-500.0,0.00013698,2]
[333676829,1722345035853,-506.68091641,0.00013698,2]
[333676830,1722345035862,-272.37734654,0.00013698,2]
[333676831,1722345035872,-500.0,0.00013698,2]
[333676832,1722345035884,-500.0,0.00013698,2]
[333676833,1722345035894,-529.39988261,0.00013698,2]
[333676834,1722345035903,-500.0,0.00013698,2]
[333676835,1722345035913,-180.96765541,0.00013698,2]
[333676836,1722345035923,-500.0,0.00013698,2]
[333676837,1722345035933,-500.0,0.00013698,2]
[333676838,1722345035943,-502.85339802,0.00013698,2]
[333676839,1722345035953,-500.0,0.00013698,2]
[333676840,1722345035963,-500.0,0.00013698,2]
[333676841,1722345035973,-500.0,0.00013698,2]
[333676842,1722345035985,-507.05338622,0.00013698,2]
[333676843,1722345035997,-500.0,0.00013698,2]
[333676844,1722345036006,-500.0,0.00013698,2]
[333676845,1722345036016,-500.0,0.00013698,2]
[333676846,1722345036027,-500.0,0.00013698,2]
[333676847,1722345036036,-500.0,0.00013698,2]
[333676848,1722345036046,-500.0,0.00013698,2]
[333676849,1722345036056,-503.20105922,0.00013698,2]
[333676850,1722345036067,-500.0,0.00013698,2]
[333676851,1722345036078,-500.0,0.00013698,2]
[333676852,1722345036088,-504.24494925,0.00013698,2]
[333676853,1722345036098,-500.0,0.00013698,2]
[333676854,1722345036108,-500.0,0.00013698,2]
[333676855,1722345036117,-500.0,0.00013698,2]
[333676856,1722345036128,-500.0,0.00013698,2]
[333676857,1722345036138,-500.0,0.00013698,2]
[333676858,1722345036148,-500.0,0.00013698,2]
[333676859,1722345036158,-179.38373503,0.00013698,2]
[333676860,1722345036168,-500.0,0.00013698,2]
[333676861,1722345036177,-500.0,0.00013698,2]
[333676862,1722345036187,-500.0,0.00013698,2]
[333676863,1722345036197,-500.0,0.00013698,2]
[333676864,1722345036207,-500.0,0.00013698,2]
[333676865,1722345036217,-504.88047884,0.00013698,2]
[333676866,1722345036227,-500.0,0.00013698,2]
[333676867,1722345036236,-501.40054139,0.00013698,2]
[333676868,1722345036247,-500.0,0.00013698,2]
[333676869,1722345036256,-500.0,0.00013698,2]
[333676870,1722345036265,-500.0,0.00013698,2]
[333676871,1722345036275,-500.0,0.00013698,2]
[333676872,1722345036284,-506.95051975,0.00013698,2]
[333676873,1722345036294,-500.0,0.00013698,2]
[333676874,1722345036303,-504.77377842,0.00013698,2]
[333676875,1722345036313,-500.0,0.00013698,2]
[333676876,1722345036322,-503.05304159,0.00013698,2]
[333676877,1722345036332,-500.0,0.00013698,2]
[333676878,1722345036342,-500.0,0.00013698,2]
[333676879,1722345036353,-500.0,0.00013698,2]
[333676880,1722345036362,-500.0,0.00013698,2]
[333676881,1722345036372,-500.0,0.00013698,2]
[333676882,1722345036386,-502.27720564,0.00013698,2]
[333676883,1722345036400,-500.0,0.00013698,2]
[333676884,1722345036411,-505.93005352,0.00013698,2]
[333676885,1722345036422,-500.0,0.00013698,2]
[333676886,1722345036431,-538.1491236,0.00013698,2]
[333676887,1722345036439,-500.0,0.00013698,2]
[333676888,1722345036449,-500.0,0.00013698,2]
[333676889,1722345036459,-567.97194249,0.00013698,2]
[333676890,1722345036468,-500.0,0.00013698,2]
[333676891,1722345036478,-500.0,0.00013698,2]
[333676892,1722345036488,-500.0,0.00013698,2]
[333676893,1722345036498,-510.6740763,0.00013698,2]
[333676894,1722345036508,-500.0,0.00013698,2]
[333676895,1722345036518,-500.0,0.00013698,2]
[333676896,1722345036528,-500.0,0.00013698,2]
[333676897,1722345036537,-500.0,0.00013698,2]
[333676898,1722345036547,-500.0,0.00013698,2]
[333676899,1722345036557,-500.0,0.00013698,2]
[333676900,1722345036568,-500.0,0.00013698,2]
[333676901,1722345036577,-500.0,0.00013698,2]
[333676902,1722345036587,-512.14634915,0.00013698,2]
[333676903,1722345036596,-500.0,0.00013698,2]
[333676904,1722345036606,-501.94435969,0.00013698,2]
[333676905,1722345036616,-500.0,0.00013698,2]
[333676906,1722345036626,-501.59045787,0.00013698,2]
[333676907,1722345036637,-502.80986087,0.00013698,2]
[333676908,1722345036646,-500.0,0.00013698,2]
[333676909,1722345036656,-500.0,0.00013698,2]
[333676910,1722345036666,-508.41351569,0.00013698,2]
[333676911,1722345036676,-500.0,0.00013698,2]
[333676912,1722345036686,-500.0,0.00013698,2]
[333676913,1722345036696,-500.0,0.00013698,2]
[333676914,1722345036705,-500.0,0.00013698,2]
[333676915,1722345036715,-500.0,0.00013698,2]
[333676916,1722345036725,-500.0,0.00013698,2]
[333676917,1722345036734,-500.0,0.00013698,2]
[333676918,1722345036744,-503.96679384,0.00013698,2]
[333676919,1722345036754,-246.04909782,0.00013698,2]
[333676920,1722345036765,-500.0,0.00013698,2]
[333676921,1722345036774,-515.53200466,0.00013698,2]
[333676922,1722345036784,-433.44925268,0.00013698,2]
[333676923,1722345036794,-500.0,0.00013698,2]
[333676924,1722345036804,-500.0,0.00013698,2]
[333676925,1722345036813,-500.0,0.00013698,2]
[333676926,1722345036822,-500.0,0.00013698,2]
[333676927,1722345036831,-500.0,0.00013698,2]
[333676928,1722345036840,-501.82316679,0.00013698,2]
[333676929,1722345036850,-500.0,0.00013698,2]
[333676930,1722345036859,-500.0,0.00013698,2]
[333676931,1722345036869,-500.0,0.00013698,2]
[333676932,1722345036881,-500.0,0.00013698,2]
[333676933,1722345036890,-500.0,0.00013698,2]
[333676934,1722345036899,-500.0,0.00013698,2]
[333676935,1722345036908,-500.0,0.00013698,2]
[333676936,1722345036917,-500.0,0.00013698,2]
[333676937,1722345036928,-500.0,0.00013698,2]